fUST/lending_fUST_20240706
["ID","MTS","AMOUNT","RATE_DAILY","PERIOD"]
[331329869,1720241442610,-170.62695744,0.00046564,120]
[331329870,1720241442619,-142723.611186,0.00046565,5]
[331329871,1720241442628,-1506.3282973,0.00046565,60]
[331329872,1720241442638,-111089.94844115,0.00046565,5]
[331329873,1720241442650,-362.79592946,0.00046565,5]
[331329875,1720241442756,-1387.7723994,0.00046565,5]
[331329903,1720241447998,-875.14744732,0.00046555,3]
[331329904,1720241448031,-128.16918965,0.00046555,3]
[331329908,1720241450070,-219.52336303,0.00046555,3]
[331329910,1720241450080,-6023.12575539,0.00046565,5]
[331329917,1720241451260,-300.0,0.00046475,120]
[331329918,1720241451272,-1042.01497917,0.00046475,120]
[331329919,1720241451282,-4355.38100712,0.00046565,5]
[331329920,1720241451294,-467.70719969,0.00046565,5]
[331329921,1720241451305,-1573.57136976,0.00046565,5]
[331329922,1720241451318,-333.3986771,0.00046565,5]
[331329923,1720241477209,1634.59229075,0.00043834,4]
[331329924,1720241481415,287.6826805,0.00043834,20]
[331329927,1720241482599,2228.50666749,0.00043834,4]
[331329931,1720241489513,1100.0897189,0.00043834,4]
[331329942,1720242425136,-175.526593,0.00021096,2]
[331329943,1720242425169,-4056.5713444,0.00038292,2]
[331329944,1720242425625,-2000.0,0.00043,120]
[331329945,1720242425648,-353.92528445,0.000438,120]
[331329946,1720242445852,-141.68525006,0.000438,120]
[331329947,1720242446173,-2585.39855187,0.00043834,4]
[331329948,1720242446737,-3153.50013343,0.00043834,60]
[331329949,1720242452542,-3617.97432043,0.00043834,60]
[331329950,1720242453551,-158.0,0.00045,90]
[331329951,1720242454058,-1394.80859136,0.00046,120]
[331329952,1720242547276,-3000.0,0.00038248,2]
[331329953,1720242548408,-160.0,0.00044822,3]
[331329954,1720242603897,2705.38814593,0.00044822,4]
[331329955,1720242612982,8135.83623836,0.00044822,60]
[331330037,1720242644656,-183.85931004,0.00046,120]
[331330039,1720242644667,-153.0,0.00046027,2]
[331330041,1720242644678,-153.0,0.00046027,2]
[331330043,1720242644688,-12.12277767,0.00046027,2]
[331330045,1720242644702,-140.87722233,0.00046027,2]
[331330047,1720242644713,-1157.54352202,0.000463,2]
[331330049,1720242644724,-24144.54934159,0.000464,120]
[331330051,1720242644735,-164.91708761,0.00046464,2]
[331330053,1720242644746,-272.98728849,0.00046465,5]
[331330056,1720242644756,-164.91708758,0.00046467,2]
[331330058,1720242644767,-164.91708758,0.00046471,2]
[331330060,1720242644778,-164.91708758,0.00046474,2]
[331330062,1720242644789,-197.2,0.00046475,2]
[331330064,1720242644801,-41022.30642514,0.000465,30]
[331330066,1720242644814,-2638.88,0.00046543,3]
[331330068,1720242644825,-500.0,0.00046552,7]
[331330070,1720242644837,-174.35075244,0.00046552,7]
[331330073,1720242644848,-70643.7528283,0.00046553,5]
[331330075,1720242644860,-70643.7528283,0.00046554,5]
[331330077,1720242644870,-67349.57674887,0.00046555,5]
[331330083,1720242644926,-1784.2212316,0.00046555,5]
[331330086,1720242644940,-1509.95484783,0.00046555,5]
[331330088,1720242644950,-433.5182958,0.00046562,120]
[331330090,1720242644961,-500.0,0.00046562,31]
[331330092,1720242644971,-500.0,0.00046562,120]
[331330094,1720242644982,-386.0638877,0.00046562,120]
[331330096,1720242644993,-500.0,0.00046562,120]
[331330098,1720242645004,-500.0,0.00046562,120]
[331330099,1720242645015,-200.0,0.00046562,31]
[331330100,1720242645027,-500.0,0.00046562,120]
[331330101,1720242645039,-500.0,0.00046562,120]
[331330102,1720242645050,-500.0,0.00046562,120]
[331330103,1720242645061,-500.0,0.00046562,120]
[331330104,1720242645073,-317.15040439,0.00046562,120]
[331330105,1720242645086,-500.0,0.00046562,120]
[331330106,1720242645097,-12194.83093698,0.00046563,61]
[331330107,1720242645111,-342.80499812,0.00046563,61]
[331330108,1720242645126,-8167.73293632,0.00046563,61]
[331330133,1720242649351,-12015.53462725,0.00046563,61]
[331330134,1720242649362,-2810.98082628,0.00046563,61]
[331330135,1720242741678,500.0,0.00044,120]
[331330141,1720243636941,-237.0,0.00031,30]
[331330142,1720243637338,-518.85515067,0.00039393,4]
[331330143,1720243638539,-350.1453113,0.00039616,2]
[331330144,1720243638564,-167.27766,0.00039853,2]
[331330145,1720243638586,-302.69857441,0.00039999,2]
[331330146,1720243638608,-412.07735676,0.00040278,4]
[331330147,1720243638629,-305.20678839,0.00040278,4]
[331330148,1720243638650,-231.548459,0.00040526,2]
[331330149,1720243638876,-741.0560288,0.00040669,2]
[331330150,1720243638902,-411.7880154,0.00040807,4]
[331330151,1720243638933,-2526.5154663,0.00040877,2]
[331330152,1720243639350,-337.49979762,0.00042958,4]
[331330153,1720243639830,-156.66074006,0.00042999,4]
[331330154,1720243639880,-869.79610735,0.00043287,4]
[331330155,1720243639904,-160.0,0.00043303,3]
[331330156,1720243639928,-667.57224635,0.00044,4]
[331330157,1720243639951,-2686.03170588,0.00044,4]
[331330158,1720243640011,-179.36283825,0.00044,4]
[331330159,1720243642867,-861.1003058,0.00044,4]
[331330160,1720243643590,-3501.33534123,0.00044,4]
[331330161,1720243644785,-154.62117811,0.00044,4]
[331330162,1720243645230,-2040.34238499,0.00046,120]
[331330163,1720243645620,-159.5432605,0.00046027,2]
[331330164,1720243645701,-160.0,0.00046341,4]
[331330165,1720243646230,-2013.58365364,0.0004638,110]
[331330166,1720243646922,-774.42830737,0.00046455,28]
[331330167,1720243648197,-350.51338873,0.00046461,2]
[331330168,1720243648574,-350.51338873,0.00046464,2]
[331330169,1720243649074,-350.51338873,0.00046468,2]
[331330170,1720243649107,-350.51338873,0.00046471,2]
[331330171,1720243649140,-350.51338873,0.00046474,2]
[331330172,1720243649166,-949.485829,0.00046475,120]
[331330173,1720243756194,-193.63548643,0.00043834,4]
[331330174,1720243793715,154.84825147,0.00043834,4]
[331330188,1720243833526,-1471.34136598,0.00046,120]
[331330189,1720243833535,-1240.26640054,0.00046462,2]
[331330190,1720243833548,-311.84903392,0.00046465,2]
[331330191,1720243833560,-412.60757393,0.00046465,2]
[331330192,1720243833571,-515.80979267,0.00046465,2]
[331330193,1720243833580,-258.84020733,0.00046469,2]
[331330194,1720243833591,-892.41994913,0.00046469,2]
[331330416,1720243842883,-89.00624406,0.00046469,2]
[331330418,1720243842895,-1240.26640052,0.00046472,2]
[331330420,1720243842905,-761.88133972,0.00046475,2]
[331330422,1720243842917,-478.3850608,0.00046475,2]
[331330424,1720243842927,-150.0,0.000465,67]
[331330426,1720243842937,-54.9512095,0.00046545,30]
[331330428,1720243842951,-586.6287905,0.00046545,30]
[331330430,1720243842961,-322.32927466,0.00046545,30]
[331330432,1720243842974,-34.11072534,0.00046545,30]
[331330434,1720243842984,-297.03,0.00046545,30]
[331330436,1720243842994,-247.53,0.00046545,30]
[331330437,1720243843004,-206.27,0.00046545,30]
[331330439,1720243843015,-171.89,0.00046545,30]
[331330441,1720243843026,-859.49,0.00046545,30]
[331330443,1720243843036,-534.65,0.00046552,30]
[331330445,1720243843046,-534.65,0.00046552,30]
[331330446,1720243843055,-3254.23,0.00046552,3]
[331330448,1720243843065,-2711.86,0.00046552,3]
[331330450,1720243843075,-164.1961937,0.00046554,31]
[331330452,1720243843085,-362.22765402,0.00046554,120]
[331330454,1720243843095,-500.0,0.00046554,7]
[331330456,1720243843105,-252.35104302,0.00046554,120]
[331330458,1720243843115,-500.0,0.00046554,7]
[331330460,1720243843134,-500.0,0.00046554,7]
[331330462,1720243843144,-378.50356417,0.00046554,7]
[331330464,1720243843154,-78717.00496,0.00046555,5]
[331330465,1720243843164,-697.94641844,0.00046561,2]
[331330468,1720243843175,-68593.50520171,0.00046563,120]
[331330469,1720243843184,-1002.41632879,0.00046564,2]
[331330471,1720243843195,-1000.0,0.00046564,120]
[331330474,1720243843204,-1000.0,0.00046564,120]
[331330476,1720243843214,-1000.0,0.00046564,120]
[331330478,1720243843224,-1000.0,0.00046564,120]
[331330480,1720243843234,-1000.0,0.00046564,120]
[331330481,1720243843243,-1028.37695744,0.00046564,120]
[331330498,1720243843419,-500.0,0.00046564,120]
[331330500,1720243843429,-500.0,0.00046564,120]
[331330502,1720243843439,-500.0,0.00046564,120]
[331330504,1720243843450,-500.0,0.00046564,120]
[331330506,1720243843460,-500.0,0.00046564,120]
[331330508,1720243843474,-500.0,0.00046564,120]
[331330510,1720243843483,-500.0,0.00046564,120]
[331330512,1720243843493,-500.0,0.00046564,120]
[331330514,1720243843503,-500.0,0.00046564,120]
[331330516,1720243843514,-500.0,0.00046564,120]
[331330520,1720243843524,-500.0,0.00046564,120]
[331330524,1720243843534,-500.0,0.00046564,120]
[331330528,1720243843548,-625.33303452,0.00046564,120]
[331330532,1720243843557,-500.0,0.00046564,120]
[331330536,1720243843567,-500.0,0.00046564,120]
[331330539,1720243843577,-478.90169938,0.00046564,120]
[331330541,1720243843588,-500.0,0.00046564,120]
[331330542,1720243843598,-500.0,0.00046564,120]
[331330543,1720243843608,-500.0,0.00046564,120]
[331330544,1720243843618,-300.0,0.00046564,31]
[331330545,1720243843628,-78717.00496,0.00046565,5]
[331330546,1720243843637,-69085.11654225,0.00046565,61]
[331330547,1720243843647,-29424.43412282,0.00046565,61]
[331330548,1720243843656,-151.0,0.00046565,14]
[331330549,1720243843667,-151.0,0.00046565,14]
[331330550,1720243843676,-151.0,0.00046565,14]
[331330551,1720243843685,-151.0,0.00046565,14]
[331330552,1720243843695,-151.0,0.00046565,14]
[331330553,1720243843705,-151.0,0.00046565,14]
[331330554,1720243843715,-296.967753,0.00046565,14]
[331330555,1720243843725,-190.15995,0.00046565,14]
[331330556,1720243843735,-151.0,0.00046565,14]
[331330557,1720243843744,-151.0,0.00046565,14]
[331330558,1720243843754,-151.0,0.00046565,14]
[331330559,1720243843764,-151.0,0.00046565,14]
[331330560,1720243843773,-151.0,0.00046565,14]
[331330561,1720243843783,-151.0,0.00046565,14]
[331330562,1720243843792,-151.0,0.00046565,14]
[331330563,1720243843801,-151.0,0.00046565,14]
[331330564,1720243843811,-215.907759,0.00046565,14]
[331330565,1720243843823,-151.0,0.00046565,14]
[331330566,1720243843832,-151.0,0.00046565,14]
[331330568,1720243843842,-151.0,0.00046565,14]
[331330569,1720243843853,-151.0,0.00046565,14]
[331330570,1720243843862,-151.0,0.00046565,14]
[331330571,1720243843872,-151.0,0.00046565,14]
[331330573,1720243843882,-151.0,0.00046565,14]
[331330575,1720243843891,-151.0,0.00046565,14]
[331330577,1720243843901,-2507.14892,0.00046565,14]
[331330579,1720243843910,-2507.14892,0.00046565,14]
[331330581,1720243843919,-151.0,0.00046565,14]
[331330583,1720243843929,-151.0,0.00046565,14]
[331330585,1720243843938,-207.236604,0.00046565,14]
[331330587,1720243843948,-151.0,0.00046565,14]
[331330589,1720243843958,-151.0,0.00046565,14]
[331330591,1720243843968,-151.0,0.00046565,14]
[331330593,1720243843977,-257.762496,0.00046565,14]
[331330595,1720243843987,-257.762496,0.00046565,14]
[331330597,1720243843996,-257.762496,0.00046565,14]
[331330599,1720243844006,-257.762496,0.00046565,14]
[331330601,1720243844015,-360.836318,0.00046565,14]
[331330603,1720243844025,-360.836318,0.00046565,14]
[331330605,1720243844035,-360.836318,0.00046565,14]
[331330607,1720243844045,-360.836318,0.00046565,14]
[331330609,1720243844054,-417.549269,0.00046565,14]
[331330611,1720243844064,-417.549269,0.00046565,14]
[331330613,1720243844073,-417.549269,0.00046565,14]
[331330615,1720243844083,-417.549269,0.00046565,14]
[331330617,1720243844092,-1026.564006,0.00046565,14]
[331330619,1720243844103,-1026.564006,0.00046565,14]
[331330621,1720243844112,-1026.564006,0.00046565,14]
[331330623,1720243844122,-1026.564006,0.00046565,14]
[331330625,1720243844131,-697.279931,0.00046565,14]
[331330627,1720243844141,-697.279931,0.00046565,14]
[331330629,1720243844151,-697.279931,0.00046565,14]
[331330631,1720243844161,-697.279931,0.00046565,14]
[331330632,1720243844171,-226.168764,0.00046565,14]
[331330634,1720243844180,-226.168764,0.00046565,14]
[331330636,1720243844190,-431.54649,0.00046565,2]
[331330638,1720243844200,-431.54649,0.00046565,2]
[331330640,1720243844210,-151.0,0.00046565,14]
[331330642,1720243844220,-151.0,0.00046565,14]
[331330644,1720243844229,-151.0,0.00046565,14]
[331330646,1720243844239,-151.0,0.00046565,14]
[331330648,1720243844249,-344.421702,0.00046565,14]
[331330650,1720243844258,-344.421702,0.00046565,14]
[331330652,1720243844268,-151.0,0.00046565,14]
[331330654,1720243844277,-172.93926,0.00046565,14]
[331330656,1720243844287,-172.93926,0.00046565,14]
[331330658,1720243844297,-19871.35839736,0.00046565,5]
[331330663,1720243844382,-211950.31315791,0.00046565,5]
[331330738,1720244139657,89.99870032,0.00025,120]
[331330739,1720244140735,67.60129968,0.00025,120]
[331330747,1720244831184,-306.36451357,0.000161,2]
[331330748,1720244836123,-1500.86329752,0.000161,2]
[331330749,1720244836145,-259.105418,0.00021096,2]
[331330750,1720244836170,-3769.18827951,0.00025,2]
[331330751,1720244836193,-166.666666,0.00027648,2]
[331330752,1720244836215,-300.0,0.00027998,2]
[331330753,1720244836236,-4349.3280875,0.00027999,2]
[331330754,1720244840112,-1434.78788135,0.00029793,2]
[331330755,1720244840135,-2019.4232334,0.00029793,2]
[331330756,1720244840159,-203.74104378,0.0002987,2]
[331330757,1720244840182,-204.1601784,0.00032595,2]
[331330758,1720244840209,-13478.03611366,0.00032619,2]
[331330759,1720244957175,-1440.02454124,0.00027194,2]
[331330760,1720244957199,-6782.16615818,0.00029999,2]
[331330761,1720244957231,-11421.96388634,0.00032619,2]
[331330762,1720244957252,-2857.76420507,0.00036351,4]
[331330763,1720244957273,-601.0404053,0.00038499,4]
[331330764,1720244957293,-162.7490761,0.00038739,2]
[331330765,1720244957319,-255.61525075,0.00039167,2]
[331330766,1720244957340,-5069.48224996,0.00039537,4]
[331330767,1720244957362,-250.0,0.00039993,2]
[331330768,1720244957382,-3990.98413807,0.00039999,4]
[331330769,1720244957403,-249.92344191,0.00039999,10]
[331330770,1720244957426,-425.05699387,0.00039999,4]
[331330771,1720244957446,-314.21232894,0.0004,120]
[331330772,1720244957465,-154.92514167,0.00042398,4]
[331330773,1720245002908,2457.10730167,0.00039537,4]
[331330774,1720245020872,190.9281156,0.00027299,2]
[331330789,1720245032722,-386.01217285,0.00045,120]
[331330802,1720245038670,-4547.61783249,0.00045,120]
[331330803,1720245038911,-2432.37230603,0.00045,120]
[331330804,1720245038920,-421.23081,0.00045,120]
[331330805,1720245038930,-279.6699664,0.00045479,2]
[331330806,1720245038939,-153.0,0.00045479,2]
[331330807,1720245038952,-153.0,0.00045479,2]
[331330808,1720245038962,-153.9485341,0.00045479,2]
[331330809,1720245038974,-875.52214426,0.000459,28]
[331330810,1720245038983,-7157.233576,0.00046,60]
[331330811,1720245038994,-1494.91074151,0.00046,120]
[331330812,1720245039015,-296.617793,0.00046027,2]
[331330813,1720245039026,-153.0,0.00046027,2]
[331330814,1720245039036,-153.0,0.00046027,2]
[331330815,1720245039047,-153.0,0.00046027,2]
[331330816,1720245039058,-153.0,0.00046027,2]
[331330817,1720245039069,-153.0,0.00046027,2]
[331330818,1720245039080,-153.0,0.00046027,2]
[331330819,1720245039090,-153.0,0.00046027,2]
[331330820,1720245039101,-153.0,0.00046027,2]
[331330821,1720245039112,-153.0,0.00046027,2]
[331330822,1720245039122,-153.0,0.00046027,2]
[331330823,1720245039132,-206.1814845,0.00046027,2]
[331330824,1720245039143,-153.0,0.00046027,2]
[331330825,1720245039153,-506.12896394,0.00046301,120]
[331330826,1720245039164,-662.16235192,0.00046301,120]
[331330827,1720245039174,-2000.0,0.000465,60]
[331330828,1720245039185,-2000.0,0.000465,60]
[331330829,1720245039195,-2000.0,0.000465,60]
[331330830,1720245039206,-2000.0,0.000465,60]
[331330831,1720245039219,-2000.0,0.000465,60]
[331330832,1720245039230,-2000.0,0.000465,60]
[331330833,1720245039241,-2000.0,0.000465,60]
[331330834,1720245039251,-2000.0,0.000465,60]
[331330835,1720245039262,-2000.0,0.000465,60]
[331330836,1720245039273,-2000.0,0.000465,60]
[331330837,1720245039284,-2000.0,0.000465,60]
[331330838,1720245039294,-2000.0,0.000465,60]
[331330839,1720245039304,-2000.0,0.000465,60]
[331330840,1720245039315,-1388.8404648,0.000465,60]
[331330841,1720245039325,-480.93,0.00046553,30]
[331330842,1720245039335,-480.93,0.00046553,30]
[331330843,1720245039346,-320.62,0.00046553,30]
[331330844,1720245039356,-267.19,0.00046553,30]
[331330845,1720245039366,-3254.23,0.00046553,3]
[331330846,1720245039376,-222.66,0.00046553,30]
[331330847,1720245039386,-2711.86,0.00046553,3]
[331330848,1720245039396,-185.55,0.00046553,30]
[331330849,1720245039406,-164.1961937,0.00046562,31]
[331330850,1720245039416,-252.35104302,0.00046562,120]
[331330851,1720245039426,-500.0,0.00046562,7]
[331330852,1720245039436,-362.22765402,0.00046562,120]
[331330853,1720245039446,-378.50356417,0.00046562,7]
[331330854,1720245039456,-500.0,0.00046562,7]
[331330855,1720245039468,-500.0,0.00046562,7]
[331330856,1720245039478,-500.0,0.00046562,7]
[331330857,1720245039488,-500.0,0.00046562,7]
[331330858,1720245039498,-500.0,0.00046562,7]
[331330859,1720245039508,-500.0,0.00046562,7]
[331330860,1720245039517,-500.0,0.00046562,7]
[331330861,1720245039527,-68593.50520171,0.00046563,30]
[331330862,1720245039537,-1000.0,0.00046564,120]
[331330863,1720245039548,-1000.0,0.00046564,120]
[331330864,1720245039558,-1000.0,0.00046564,120]
[331330865,1720245039568,-1000.0,0.00046564,120]
[331330866,1720245039577,-1000.0,0.00046564,120]
[331330867,1720245039587,-1028.37695744,0.00046564,120]
[331330868,1720245039597,-500.0,0.00046564,120]
[331330869,1720245039607,-500.0,0.00046564,120]
[331330870,1720245039616,-500.0,0.00046564,120]
[331330871,1720245039626,-500.0,0.00046564,120]
[331330872,1720245039635,-500.0,0.00046564,120]
[331330873,1720245039645,-500.0,0.00046564,120]
[331330874,1720245039655,-500.0,0.00046564,120]
[331330875,1720245039665,-500.0,0.00046564,120]
[331330876,1720245039676,-500.0,0.00046564,120]
[331330877,1720245039686,-500.0,0.00046564,120]
[331330878,1720245039697,-500.0,0.00046564,120]
[331330879,1720245039707,-500.0,0.00046564,120]
[331330880,1720245039716,-500.0,0.00046564,120]
[331330881,1720245039726,-285.15625599,0.00046564,120]
[331330882,1720245039736,-500.0,0.00046564,120]
[331330883,1720245039746,-500.0,0.00046564,120]
[331330884,1720245039756,-500.0,0.00046564,120]
[331330885,1720245039765,-500.0,0.00046564,120]
[331330886,1720245039775,-500.0,0.00046564,120]
[331330887,1720245039786,-300.0,0.00046564,31]
[331330888,1720245039796,-500.0,0.00046564,120]
[331330889,1720245039807,-500.0,0.00046564,120]
[331330890,1720245039817,-326.16024704,0.00046564,120]
[331330891,1720245039827,-500.0,0.00046564,120]
[331330892,1720245039838,-500.0,0.00046564,120]
[331330893,1720245039847,-500.0,0.00046564,120]
[331330894,1720245039863,-157782.185615,0.00046565,5]
[331330895,1720245039874,-69085.11654225,0.00046565,61]
[331330896,1720245039884,-151.0,0.00046565,14]
[331330897,1720245039894,-151.0,0.00046565,14]
[331330898,1720245039904,-151.0,0.00046565,14]
[331330899,1720245039915,-151.0,0.00046565,14]
[331330901,1720245039924,-151.0,0.00046565,14]
[331330903,1720245039935,-697.279931,0.00046565,14]
[331330904,1720245039946,-697.279931,0.00046565,14]
[331330905,1720245039957,-172.93926,0.00046565,14]
[331330906,1720245039966,-52799.42779207,0.00046565,5]
[331330907,1720245040264,210.712198,0.00039492,2]
[331330908,1720245041085,-172.93926,0.00046565,14]
[331330909,1720245041095,-183873.85063093,0.00046565,5]
[331330910,1720245041105,-27903.52326698,0.00046575,61]
[331330926,1720245044429,-154.62,0.00046555,30]
[331330927,1720245044438,-151.0,0.00046565,14]
[331330928,1720245044448,-264.879992,0.00046575,61]
[331330929,1720245044460,-280.000005,0.00046575,61]
[331330933,1720245046695,-301.50038262,0.00046555,3]
[331330934,1720245046708,-1958.37961738,0.00046555,3]
[331330935,1720245046717,-976.03085884,0.00046575,61]
[331330936,1720245046727,-502.69255638,0.00046575,120]
[331330937,1720245046736,-500.0,0.00046575,120]
[331330938,1720245046746,-500.0,0.00046575,120]
[331330939,1720245046755,-502.58476278,0.00046575,120]
[331330940,1720245046764,-501.61108564,0.00046575,120]
[331330941,1720245046773,-500.0,0.00046575,2]
[331330942,1720245046783,-606.90929131,0.00046575,120]
[331330943,1720245046792,-500.0,0.00046575,120]
[331330944,1720245046801,-508.57067345,0.00046575,120]
[331330945,1720245046810,-500.0,0.00046575,120]
[331330946,1720245046819,-500.0,0.00046575,120]
[331330947,1720245046829,-500.0,0.00046575,120]
[331330948,1720245046838,-151.0,0.00046575,14]
[331330950,1720245046847,-151.0,0.00046575,14]
[331330951,1720245046857,-151.0,0.00046575,14]
[331330952,1720245046873,-151.0,0.00046575,14]
[331330953,1720245046883,-151.0,0.00046575,14]
[331330954,1720245046892,-372.66715227,0.00046575,120]
[331330955,1720245046902,-500.77760053,0.00046575,120]
[331330956,1720245046914,-441.97446306,0.00046575,120]
[331330957,1720245046924,-500.0,0.00046575,120]
[331330958,1720245046934,-344.35416463,0.00046575,120]
[331330959,1720245046949,-157.51538413,0.00046575,120]
[331330960,1720245046960,-500.0,0.00046575,120]
[331330961,1720245046969,-366.15795748,0.00046575,120]
[331330962,1720245046982,-134.65441835,0.00046575,120]
[331330963,1720245046991,-379.89623356,0.00046575,120]
[331330964,1720245047003,-129.36571339,0.00046575,120]
[331330965,1720245047012,-501.77505719,0.00046575,120]
[331330966,1720245047021,-501.18749534,0.00046575,120]
[331330967,1720245047030,-97.00912539,0.00046575,120]
[331330968,1720245049685,4003.04909558,0.00043834,4]
[331330969,1720245064743,724.21175,0.00027299,2]
[331330977,1720245133448,13139.13213038,0.00037158,2]
[331330978,1720245133476,6430.83881702,0.00037158,2]
[331330979,1720245144641,3583.72483318,0.00028,30]
[331330980,1720245152376,1653.48030624,0.00033089,4]
[331330997,1720246037147,-164.122619,0.00021096,2]
[331330998,1720246037170,-7623.07678655,0.00022941,2]
[331330999,1720246037197,-2141.01034381,0.00026574,2]
[331331000,1720246037221,-810.44222687,0.00029793,2]
[331331001,1720246037245,-156.60359935,0.00029803,2]
[331331002,1720246037268,-154.62117811,0.00029813,2]
[331331003,1720246037293,-309.29749882,0.0003,4]
[331331004,1720246037322,-1106.722982,0.00032636,2]
[331331005,1720246037345,-166.666666,0.00032784,2]
[331331006,1720246037368,-2879.0,0.00033079,2]
[331331007,1720246037389,-155.62578204,0.00033089,4]
[331331008,1720246037411,-362.27114945,0.00033089,3]
[331331009,1720246037434,-154.88310816,0.00033089,4]
[331331010,1720246037456,-1193.49436015,0.00033089,4]
[331331011,1720246037478,-408.70455851,0.00033089,4]
[331331012,1720246037502,-210.7121982,0.00033329,2]
[331331013,1720246037524,-168.944063,0.00034212,2]
[331331014,1720246037548,-838.20707794,0.00035,4]
[331331015,1720246039142,-124.75869479,0.00035,4]
[331331016,1720246039162,-2857.76420507,0.00035292,4]
[331331017,1720246039184,-295.12680535,0.00036,30]
[331331018,1720246041272,-102.07402545,0.00036,30]
[331331019,1720246041293,-150.96432072,0.00037807,14]
[331331020,1720246051994,-154.62117811,0.00029813,2]
[331331021,1720246052017,-1446.29218467,0.00037807,14]
[331331022,1720246052039,-155.60424435,0.00037807,4]
[331331023,1720246052060,-858.68598007,0.00037807,2]
[331331024,1720246052082,-843.47662739,0.00037899,4]
[331331025,1720246054105,-500.0,0.00037899,4]
[331331026,1720246148397,-1044.14921762,0.00037807,2]
[331331027,1720246148422,-793.78228741,0.00037999,4]
[331331028,1720246148449,-643.98391124,0.00038264,4]
[331331029,1720246148477,-645.35673411,0.00038499,4]
[331331030,1720246148504,-208.35130789,0.00039167,4]
[331331031,1720246148532,-545.04622774,0.00039177,4]
[331331032,1720246148566,-965.65219788,0.00039894,2]
[331331033,1720246148591,-155.2372479,0.00039994,4]
[331331034,1720246148617,-154.79948781,0.00039994,4]
[331331035,1720246148642,-2366.31594565,0.00039999,4]
[331331036,1720246148663,-822.96344709,0.00039999,4]
[331331037,1720246148686,-352.71953724,0.00039999,30]
[331331038,1720246148707,-405.97364914,0.00039999,4]
[331331039,1720246149031,-394.44764878,0.0004,120]
[331331040,1720246149062,-155.0528303,0.00040229,4]
[331331041,1720246149083,-360.16423676,0.00040229,4]
[331331042,1720246149107,-164.122619,0.00040411,2]
[331331043,1720246149128,-160.0,0.00041024,3]
[331331044,1720246149170,-965.65219785,0.00041499,28]
[331331045,1720246149192,-160.0,0.00041784,4]
[331331046,1720246149215,-4931.13001145,0.00042,35]
[331331047,1720246149243,-160.0,0.00042543,5]
[331331048,1720246149267,-965.65219785,0.00043105,28]
[331331049,1720246149289,-160.0,0.00043303,6]
[331331050,1720246149312,-440.67378173,0.00043615,4]
[331331051,1720246149334,-312.99057034,0.000438,4]
[331331052,1720246149355,-160.0,0.00044062,7]
[331331053,1720246149727,962.96577273,0.00039999,4]
[331331054,1720246160093,-965.65219785,0.0004471,28]
[331331055,1720246160115,-160.0,0.00044822,8]
[331331056,1720246187633,602.01052306,0.00043834,4]
[331331057,1720246196970,162.01373055,0.00043834,4]
[331331059,1720246222684,3816.23096379,0.00044822,60]
[331331060,1720246229735,1100.53231169,0.00043834,4]
[331331078,1720246233248,-2124.85122418,0.00045039,4]
[331331079,1720246233258,-153.0,0.00045205,2]
[331331080,1720246233272,-153.0,0.00045205,2]
[331331082,1720246233281,-153.0,0.00045205,2]
[331331084,1720246233291,-153.0,0.00045205,2]
[331331085,1720246233301,-153.0,0.00045205,2]
[331331087,1720246233310,-206.1814845,0.00045205,2]
[331331089,1720246233320,-153.0,0.00045205,2]
[331331091,1720246233330,-153.0,0.00045205,2]
[331331093,1720246233340,-206.1814845,0.00045205,2]
[331331095,1720246233351,-153.0,0.00045205,2]
[331331097,1720246233361,-206.1814845,0.00045205,2]
[331331099,1720246233370,-153.0,0.00045205,2]